fUST/lending_fUST_20240331
["ID","MTS","AMOUNT","RATE_DAILY","PERIOD"]
[321074595,1711878638048,-500.0,0.00044999,4]
[321074596,1711878638058,-612.26,0.00044999,4]
[321074597,1711878638067,-500.0,0.00044999,4]
[321074598,1711878638078,-500.0,0.00044999,4]
[321074599,1711878638088,-279.65883736,0.00044999,4]
[321074600,1711878638098,-500.0,0.00044999,4]
[321074601,1711878638108,-500.0,0.00044999,4]
[321074602,1711878638118,-289.24,0.00044999,4]
[321074603,1711878638128,-500.0,0.00044999,4]
[321074604,1711878638138,-542.22988519,0.00044999,4]
[321074605,1711878638148,-18726.33497064,0.00045,3]
[321074606,1711878638158,-1639.2774137,0.00045,30]
[321074607,1711878641271,-874.73567011,0.00045,30]
[321074613,1711878643215,-7698.60488406,0.00045,30]
[321074646,1711878645984,-1513.0754403,0.00045,30]
[321074647,1711878645998,-841.1231325,0.00045,30]
[321074648,1711878685143,150.0,0.00036,2]
[321074700,1711879180652,-1000.0,0.00039,7]
[321074703,1711879200043,-60.25963559,0.00039,7]
[321074704,1711879200068,-163.430055,0.0004,2]
[321074723,1711879495567,290.31030941,0.00031,120]
[321074724,1711879495592,25615.68404771,0.00031,120]
[321074725,1711879495618,14094.00564288,0.00031,120]
[321074737,1711879639155,-183.785642,0.0004,2]
[321074738,1711879639175,-150.96371262,0.00042057,30]
[321074739,1711879639195,-150.96371262,0.00042535,30]
[321074740,1711879639215,-166.666666,0.00042553,2]
[321074741,1711879639235,-225.20254909,0.000429,2]
[321074742,1711879639256,-3187.30821765,0.00043569,2]
[321074743,1711879648219,-3659.54115993,0.00043569,2]
[321074890,1711879838122,-259.83509583,0.00039999,5]
[321074891,1711879838134,-140.16490417,0.00039999,5]
[321074892,1711879838144,-2499.97912602,0.0004,29]
[321074893,1711879838194,-565.90470413,0.0004,29]
[321074896,1711879838250,-4674.75971776,0.0004,29]
[321074898,1711879838262,-7097.25776037,0.0004,29]
[321074998,1711879843321,-5162.09869172,0.0004,29]
[321074999,1711879843330,-200.13503273,0.00041469,2]
[321075000,1711879843344,-166.666666,0.00042907,2]
[321075001,1711879843354,-337.65534952,0.00043569,2]
[321075611,1711880845107,-1278.11757534,0.000379,2]
[321075612,1711880845130,-317.52237753,0.00039899,2]
[321075613,1711880845156,-260.0,0.00039999,5]
[321075614,1711880845179,-2891.20304381,0.0004,120]
[321075616,1711880851082,-3902.86193635,0.0004,120]
[321075666,1711881032286,-852.07838356,0.000379,2]
[321075668,1711881032295,-200.0,0.00039308,120]
[321075670,1711881032305,-200.0,0.00039393,120]
[321075672,1711881032313,-5129.80240302,0.0004,120]
[321075712,1711881038548,-5706.22156324,0.0004,120]
[321076063,1711881043473,-2369.91105358,0.0004,120]
[321076065,1711881043482,-163.430055,0.0004,2]
[321076067,1711881043491,-183.785642,0.0004,2]
[321076069,1711881043500,-166.666666,0.00041096,2]
[321076071,1711881043509,-200.0,0.00041545,120]
[321076073,1711881043518,-203.553473,0.0004155,2]
[321076075,1711881043527,-66.15311042,0.00041766,120]
[321076077,1711881043538,-133.84688958,0.00041766,120]
[321076079,1711881043547,-200.0,0.00041836,120]
[321076081,1711881043556,-166.666666,0.00042058,2]
[321076083,1711881043566,-35.21566469,0.00042249,120]
[321076086,1711881043577,-164.78433531,0.00042249,120]
[321076088,1711881043586,-256.1879282,0.00042321,2]
[321076090,1711881043596,-157.29811271,0.00042331,30]
[321076092,1711881043605,-157.14285714,0.00042396,30]
[321076094,1711881043615,-150.96371261,0.00042436,30]
[321076096,1711881043624,-150.96371261,0.00042584,30]
[321076098,1711881043633,-179.252085,0.00042594,2]
[321076100,1711881043642,-200.0,0.00042668,120]
[321076102,1711881043651,-388.40725642,0.000429,2]
[321076366,1711881046353,-463.67112714,0.000429,2]
[321076368,1711881046364,-1057.17171441,0.00042904,2]
[321076370,1711881046375,-5786.71685929,0.00042904,2]
[321076372,1711881046384,-304.64775137,0.00043,4]
[321076374,1711881046394,-166.666666,0.00043019,2]
[321076376,1711881046403,-200.0,0.00043051,120]
[321076378,1711881046412,-157.14285714,0.00043453,30]
[321076380,1711881046421,-232.27551106,0.00043569,2]
[321076382,1711881046432,-150.96371261,0.00043676,30]
[321076384,1711881046444,-150.96371261,0.00043747,30]
[321076386,1711881046454,-166.666666,0.00043981,2]
[321076389,1711881046464,-155.60917042,0.00043997,30]
[321076391,1711881046473,-500.0,0.00044,120]
[321076392,1711881046482,-312.45801185,0.00044,120]
[321076852,1711882041161,-154.98450155,0.0004,4]
[321076853,1711882041279,-155.11441755,0.0004,4]
[321076854,1711882041301,-422.52769606,0.00040804,2]
[321076855,1711882041322,-166.666666,0.00041854,2]
[321076856,1711882041343,-200.0,0.00041971,120]
[321076857,1711882041364,-200.0,0.00042205,120]
[321076858,1711882041384,-150.96371262,0.00042213,30]
[321076859,1711882041404,-167.658928,0.00042624,2]
[321076860,1711882041424,-249.300262,0.00042713,2]
[321076861,1711882041444,-190.7287286,0.00042728,120]
[321076862,1711882041465,-200.0,0.0004282,120]
[321076863,1711882041486,-2461.75728353,0.000429,4]
[321076864,1711882054083,-187.5946,0.0004,2]
[321076865,1711882054103,-157.29811272,0.00042303,30]
[321076866,1711882054123,-3753.43887142,0.000429,4]
[321076922,1711882233408,-874.08473235,0.00037786,2]
[321076924,1711882233418,-281.6851307,0.000408,2]
[321076926,1711882233428,-49.00994442,0.000429,4]
[321076928,1711882233438,-166.666666,0.00042995,2]
[321076930,1711882233447,-180.149243,0.00043,4]
[321076932,1711882233457,-500.0,0.00043,120]
[321076934,1711882233466,-150.96371262,0.00043605,30]
[321076936,1711882233476,-150.96371262,0.00043635,30]
[321076938,1711882233486,-200.0,0.00043693,120]
[321076939,1711882233495,-150.96371262,0.00043762,30]
[321076941,1711882233504,-150.96371262,0.00043851,30]
[321076943,1711882233513,-17.73913572,0.00044,120]
[321077162,1711883225104,-4714.89049998,0.0004,30]
[321077163,1711883243085,-3930.53866688,0.0004,30]
[321077164,1711883243199,-178.21487,0.0004,2]
[321077165,1711883243219,-50.78762305,0.0004075,2]
[321077288,1711883432975,-338.45335888,0.000379,2]
[321077290,1711883432984,-16134.02097129,0.00040366,2]
[321080515,1711884442138,-448.04823379,0.00038266,2]
[321080516,1711884442158,-183.7856572,0.0004,2]
[321080517,1711884442177,-2316.47173248,0.0004,2]
[321080518,1711884442197,-169.304126,0.0004,2]
[321080519,1711884442218,-260.0,0.00040749,5]
[321080520,1711884442238,-1869.23324721,0.0004075,2]
[321080860,1711884637835,-724.7380143,0.0003865,2]
[321080861,1711884637857,-498.52004349,0.00040368,2]
[321080862,1711884637877,-2258.91667099,0.0004075,2]
[321080863,1711884637902,-2010.59260191,0.0004075,2]
[321080864,1711884637929,-5029.43319399,0.0004075,2]
[321080865,1711884637959,-166.666666,0.00041096,2]
[321080866,1711884637970,-167.658928,0.0004152,2]
[321080868,1711884637979,-766.9938411,0.00041706,2]
[321080870,1711884637988,-382.613042,0.00041728,2]
[321080871,1711884637997,-9956.75383082,0.00041759,2]
[321081101,1711884642458,-637.15713828,0.00041759,2]
[321081103,1711884642468,-183.87798175,0.00042,20]
[321081105,1711884642478,-166.666666,0.000422,2]
[321081107,1711884642487,-155.60917043,0.00042436,30]
[321081109,1711884642496,-150.96371262,0.0004244,30]
[321081110,1711884642506,-157.14285715,0.00042454,30]
[321081113,1711884642516,-1385.51340934,0.00042471,2]
[321081115,1711884642525,-202.21811,0.00042695,2]
[321081117,1711884642535,-202.21811,0.00042695,2]
[321081119,1711884642546,-404.2803577,0.00042695,2]
[321081120,1711884642555,-202.21811,0.00042695,2]
[321081123,1711884642565,-202.21811,0.00042695,2]
[321081124,1711884642575,-166.666666,0.00043305,2]
[321081127,1711884642584,-169.13413381,0.00043541,3]
[321081128,1711884642594,-724.7380143,0.0004365,2]
[321081130,1711884642603,-150.29941185,0.00043882,2]
[321081132,1711884642612,-322.97578882,0.00043981,120]
[321081134,1711884642621,-500.0,0.00043982,4]
[321081135,1711884642631,-151.0,0.00043982,7]
[321081138,1711884642640,-500.0,0.00043982,4]
[321081140,1711884642650,-500.0,0.00043982,4]
[321081142,1711884642659,-500.0,0.00043982,4]
[321081143,1711884642668,-500.0,0.00043982,4]
[321081144,1711884642678,-500.0,0.00043982,4]
[321081145,1711884642687,-639.81,0.00043982,4]
[321081147,1711884642696,-500.0,0.00043982,4]
[321081149,1711884642706,-500.0,0.00043982,4]
[321081151,1711884642715,-500.0,0.00043982,4]
[321081153,1711884642724,-500.0,0.00043982,4]
[321081155,1711884642733,-500.0,0.00043982,4]
[321081156,1711884642742,-500.0,0.00043982,4]
[321081157,1711884642752,-500.0,0.00043982,4]
[321081158,1711884642765,-1839.8,0.00043982,4]
[321081159,1711884642775,-500.0,0.00043982,4]
[321081160,1711884642784,-500.0,0.00043982,4]
[321081161,1711884642794,-383.37596,0.00043982,7]
[321081162,1711884642803,-500.0,0.00043982,4]
[321081164,1711884642813,-500.0,0.00043982,4]
[321081166,1711884642822,-383.37596,0.00043982,7]
[321081168,1711884642832,-625.76,0.00043982,4]
[321081170,1711884642843,-500.0,0.00043982,4]
[321081171,1711884642852,-500.0,0.00043982,4]
[321081172,1711884642861,-153.31857,0.00043983,7]
[321081173,1711884642870,-543.88258224,0.00043983,4]
[321081174,1711884642880,-151.0,0.00043983,7]
[321081175,1711884642889,-151.0,0.00043983,7]
[321081176,1711884642898,-318.3981193,0.00043983,4]
[321081177,1711884642907,-500.0,0.00043983,4]
[321081178,1711884642916,-151.0,0.00043983,7]
[321081179,1711884642925,-500.0,0.00043983,4]
[321081180,1711884642934,-502.72871282,0.00043983,4]
[321081181,1711884642943,-505.06974009,0.00043983,4]
[321081182,1711884642952,-500.0,0.00043983,4]
[321081183,1711884642961,-500.0,0.00043983,4]
[321081184,1711884642971,-500.0,0.00043983,4]
[321081185,1711884642980,-500.28204779,0.00043983,4]
[321081186,1711884642990,-309.799688,0.00043983,7]
[321081187,1711884642999,-309.799688,0.00043983,7]
[321081188,1711884643009,-309.799688,0.00043983,7]
[321081189,1711884643018,-309.799688,0.00043983,7]
[321081190,1711884643027,-309.799688,0.00043983,7]
[321081191,1711884643037,-309.799688,0.00043983,7]
[321081192,1711884643046,-309.799688,0.00043983,7]
[321081193,1711884643055,-309.799688,0.00043983,7]
[321081194,1711884643064,-500.0,0.00043983,4]
[321081195,1711884643073,-552.4541781,0.00043983,4]
[321081196,1711884643082,-151.0,0.00043983,7]
[321081197,1711884643092,-504.24,0.00043983,4]
[321081198,1711884643101,-500.0,0.00043983,4]
[321081199,1711884643110,-500.0,0.00043983,4]
[321081200,1711884643119,-500.0,0.00043983,4]
[321081201,1711884643128,-683.0,0.00043983,4]
[321081202,1711884643137,-151.0,0.00043983,7]
[321081203,1711884643146,-151.0,0.00043983,7]
[321081204,1711884643155,-151.0,0.00043983,7]
[321081205,1711884643164,-151.0,0.00043983,7]
[321081206,1711884643259,-151.0,0.00043983,7]
[321081207,1711884643272,-151.0,0.00043983,7]
[321081208,1711884643281,-500.0,0.00043983,4]
[321081209,1711884643291,-500.0,0.00043983,4]
[321081210,1711884643300,-1000.0,0.00043983,7]
[321081211,1711884643311,-355.56324934,0.00043983,4]
[321081212,1711884643321,-171.510047,0.00043983,7]
[321081213,1711884643331,-171.510047,0.00043983,7]
[321081214,1711884643340,-171.510047,0.00043983,7]
[321081215,1711884643350,-171.510047,0.00043983,7]
[321081216,1711884643360,-171.510047,0.00043983,7]
[321081217,1711884643369,-171.510047,0.00043983,7]
[321081218,1711884643379,-171.510047,0.00043983,7]
[321081219,1711884643388,-171.510047,0.00043983,7]
[321081220,1711884643397,-171.510047,0.00043983,7]
[321081221,1711884643406,-171.510047,0.00043983,7]
[321081222,1711884643415,-171.510047,0.00043983,7]
[321081223,1711884643425,-171.510047,0.00043983,7]
[321081224,1711884643434,-171.510047,0.00043983,7]
[321081225,1711884643443,-171.510047,0.00043983,7]
[321081226,1711884643452,-500.0,0.00043983,4]
[321081227,1711884643462,-500.0,0.00043983,4]
[321081228,1711884643472,-500.0,0.00043983,4]
[321081229,1711884643481,-2393.31,0.00043983,4]
[321081230,1711884643491,-383.37596,0.00043983,7]
[321081231,1711884643500,-383.37596,0.00043983,7]
[321081232,1711884643511,-383.37596,0.00043983,7]
[321081233,1711884643520,-383.37596,0.00043983,7]
[321081234,1711884643530,-383.37596,0.00043983,7]
[321081235,1711884643540,-383.37596,0.00043983,7]
[321081236,1711884643549,-383.37596,0.00043983,7]
[321081237,1711884643558,-383.37596,0.00043983,7]
[321081238,1711884643567,-383.37596,0.00043983,7]
[321081239,1711884643577,-383.37596,0.00043983,7]
[321081240,1711884643587,-383.37596,0.00043983,7]
[321081241,1711884643596,-302.89324458,0.00043983,7]
[321081242,1711884643609,-80.48271542,0.00043983,7]
[321081243,1711884643618,-383.37596,0.00043983,7]
[321081244,1711884643627,-383.37596,0.00043983,7]
[321081245,1711884643637,-500.0,0.00043983,4]
[321081246,1711884643647,-500.0,0.00043984,4]
[321081247,1711884643656,-161.48303183,0.00043984,4]
[321081248,1711884643666,-500.0,0.00043984,4]
[321081249,1711884643676,-500.0,0.00043984,4]
[321081250,1711884643685,-500.0,0.00043984,4]
[321081251,1711884643694,-151.0,0.00043984,7]
[321081252,1711884643703,-151.0,0.00043984,7]
[321081253,1711884643712,-215.742779,0.00043984,7]
[321081254,1711884643721,-514.78,0.00043984,4]
[321081255,1711884643731,-500.0,0.00043984,4]
[321081256,1711884643740,-455.67180676,0.00043984,4]
[321081257,1711884643752,-44.32819324,0.00043984,4]
[321081258,1711884643763,-210.83835132,0.00043984,4]
[321081399,1711885626112,-5219.70219591,0.00039952,2]
[321081404,1711885758095,-500.8670335,0.00037852,2]
[321081525,1711885843430,-1396.08442753,0.00039952,2]
[321081527,1711885843440,-160.838919,0.0004,2]
[321081528,1711885843450,-500.81428456,0.0004,7]
[321081529,1711885843460,-317.52237753,0.00040268,2]
[321081530,1711885843471,-4683.50466593,0.0004037,2]
[321081816,1711886828168,-156.43107922,0.0003827,2]
[321081817,1711886829096,-177.48027645,0.0003827,2]
[321081818,1711886829117,-5037.41022353,0.00039,7]
[321081828,1711886959122,-222.60757045,0.000369,2]
[321081870,1711887033134,-167.658928,0.00038803,2]
[321081872,1711887033144,-7704.78447746,0.00039,7]
[321082260,1711887043485,-2665.362,0.00039,7]
[321082288,1711887898824,-150.0,0.000369,2]
[321082289,1711887898849,-167.658928,0.00038416,2]
[321082290,1711887898873,-608.8540047,0.00038545,2]
[321082291,1711887898899,-608.314384,0.0003859,2]
[321082292,1711887898924,-190.7287286,0.00038677,120]
[321082293,1711887898949,-10451.0001189,0.00038759,2]
[321082294,1711887898973,-766.9938411,0.00038844,2]
[321082295,1711887898998,-8634.81457243,0.00039,7]
[321082296,1711887899023,-6215.19615495,0.00039,4]
[321082297,1711887899048,-150.29941182,0.000399,2]
[321082298,1711887899073,-278.27,0.0004,120]
[321082299,1711887899097,-160.838919,0.0004,2]
[321082300,1711887899122,-150.29941182,0.00040114,2]
[321082301,1711887899147,-150.29941182,0.00040329,2]
[321082302,1711887899171,-500.0,0.00040368,4]
[321082303,1711887899196,-500.0,0.00040368,4]
[321082304,1711887899223,-500.0,0.00040368,4]
[321082305,1711887899250,-500.0,0.00040368,4]
[321082306,1711887899276,-500.0,0.00040368,4]
[321082307,1711887899302,-500.0,0.00040368,4]
[321082308,1711887899328,-528.2,0.00040368,4]
[321082309,1711887899353,-500.0,0.00040368,4]
[321082310,1711887899378,-500.0,0.00040368,4]
[321082311,1711887899408,-500.0,0.00040368,4]
[321082312,1711887899434,-500.0,0.00040368,4]
[321082313,1711887899459,-510.29851374,0.00040368,4]
[321082314,1711887899485,-630.92,0.00040368,4]
[321082315,1711887899511,-500.0,0.00040368,4]
[321082316,1711887899536,-500.0,0.00040368,4]
[321082317,1711887899562,-500.0,0.00040369,4]
[321082318,1711887899588,-501.50996757,0.00040369,4]
[321082319,1711887899615,-500.0,0.00040369,4]
[321082320,1711887899640,-500.0,0.00040369,4]
[321082321,1711887899665,-500.0,0.00040369,4]
[321082322,1711887899690,-508.15509378,0.00040369,4]
[321082323,1711887899716,-185.879813,0.00040369,2]
[321082324,1711887899743,-185.879813,0.00040369,2]
[321082325,1711887899768,-185.879813,0.00040369,2]
[321082326,1711887899793,-185.879813,0.00040369,2]
[321082327,1711887899818,-185.879813,0.00040369,2]
[321082328,1711887899842,-185.879813,0.00040369,2]
[321082329,1711887899868,-500.0,0.00040369,4]
[321082330,1711887899897,-580.89683618,0.00040369,4]
[321082331,1711887899923,-500.0,0.00040369,4]
[321082332,1711887899948,-1249.86,0.00040369,4]
[321082333,1711887899974,-500.0,0.00040369,4]
[321082334,1711887900088,-504.08768691,0.00040369,4]
[321082335,1711887900116,-331.20466263,0.00040369,4]
[321082336,1711887900143,-500.0,0.00040369,4]
[321082337,1711887900169,-500.6837492,0.00040369,4]
[321082338,1711887900195,-500.0,0.00040369,4]
[321082339,1711887900221,-500.0,0.00040369,4]
[321082340,1711887900248,-500.0,0.00040369,4]
[321082341,1711887900273,-500.0,0.00040369,4]
[321082342,1711887900298,-500.7694872,0.00040369,4]
[321082343,1711887900323,-501.34698808,0.00040369,4]
[321082344,1711887900348,-247.56943081,0.00040369,4]
[321082345,1711887900375,-1763.14,0.00040369,4]
[321082346,1711887900399,-504.56003072,0.00040369,4]
[321082347,1711887900425,-501.98382445,0.00040369,4]
[321082348,1711887900449,-500.38574208,0.00040369,4]
[321082349,1711887900475,-500.0,0.00040369,4]
[321082350,1711887900501,-500.0,0.00040369,2]
[321082351,1711887900526,-151.0,0.00040369,2]
[321082352,1711887900551,-151.0,0.00040369,2]
[321082353,1711887900576,-151.0,0.00040369,2]
[321082354,1711887900602,-151.0,0.00040369,2]
[321082355,1711887900627,-151.0,0.00040369,2]
[321082356,1711887900652,-151.0,0.00040369,2]
[321082357,1711887900677,-151.0,0.00040369,2]
[321082358,1711887900702,-289.630043,0.00040369,2]
[321082359,1711887900730,-2420.6,0.00040369,4]
[321082360,1711887900756,-151.0,0.00040369,2]
[321082361,1711887900782,-151.0,0.00040369,2]
[321082362,1711887900807,-151.0,0.00040369,2]
[321082363,1711887900832,-151.0,0.00040369,2]
[321082364,1711887900861,-151.0,0.00040369,2]
[321082365,1711887900886,-151.0,0.00040369,2]
[321082366,1711887900910,-151.0,0.00040369,2]
[321082367,1711887900934,-161.391675,0.00040369,2]
[321082368,1711887900959,-502.18845276,0.00040369,4]
[321082369,1711887900984,-500.0,0.00040369,4]
[321082370,1711887901009,-500.0,0.00040369,4]
[321082371,1711887901035,-701.82,0.00040369,4]
[321082372,1711887901067,-426.86145648,0.00040369,4]
[321082373,1711887901099,-500.0,0.00040369,4]
[321082374,1711887901128,-151.0,0.00040369,2]
[321082375,1711887901158,-500.0,0.00040369,4]
[321082376,1711887901190,-500.0,0.00040369,4]
[321082377,1711887901221,-151.0,0.00040369,2]
[321082378,1711887901251,-151.0,0.00040369,2]
[321082379,1711887901279,-3822.0,0.0004037,5]
[321082380,1711887901308,-500.35088863,0.0004037,4]
[321082381,1711887901338,-310.44066584,0.0004037,4]
[321082382,1711887901366,-501.15698553,0.0004037,4]
[321082383,1711887901397,-500.0,0.0004037,2]
[321082384,1711887901427,-500.0,0.0004037,4]
[321082385,1711887901453,-500.0,0.0004037,4]
[321082386,1711887901484,-502.44000618,0.0004037,4]
[321082387,1711887901514,-500.34852597,0.0004037,4]
[321082388,1711887901542,-500.34844763,0.0004037,4]
[321082389,1711887901570,-500.0,0.0004037,4]
[321082390,1711887901598,-234.59776508,0.0004037,4]
[321082391,1711887901627,-500.0,0.0004037,4]
[321082392,1711887901658,-500.0,0.0004037,4]
[321082393,1711887901688,-500.0,0.0004037,4]
[321082394,1711887901722,-502.56806666,0.0004037,4]
[321082395,1711887901750,-500.0,0.0004037,4]
[321082396,1711887901776,-500.0,0.0004037,4]
[321082397,1711887901806,-500.0,0.0004037,4]
[321082398,1711887901836,-500.0,0.0004037,4]
[321082399,1711887901864,-500.0,0.0004037,4]
[321082400,1711887901894,-500.0,0.0004037,4]
[321082401,1711887901921,-503.17923466,0.0004037,4]
[321082402,1711887901948,-501.64535613,0.0004037,4]
[321082403,1711887901977,-500.0,0.0004037,4]
[321082404,1711887902006,-502.95703853,0.0004037,4]
[321082405,1711887902034,-503.97374381,0.0004037,4]
[321082406,1711887902061,-500.0,0.0004037,4]
[321082407,1711887902089,-501.76185361,0.0004037,4]
[321082408,1711887902118,-500.0,0.0004037,4]
[321082409,1711887902262,-500.0,0.0004037,4]
[321082410,1711887902287,-393.75945402,0.0004037,4]
[321082411,1711887902312,-185.879813,0.0004037,2]
[321082412,1711887902336,-185.879813,0.0004037,2]
[321082413,1711887902361,-185.879813,0.0004037,2]
[321082414,1711887902387,-185.879813,0.0004037,2]
[321082415,1711887902412,-185.879813,0.0004037,2]
[321082416,1711887902439,-185.879813,0.0004037,2]
[321082417,1711887902465,-185.879813,0.0004037,2]
[321082418,1711887902489,-185.879813,0.0004037,2]
[321082419,1711887902517,-185.879813,0.0004037,2]
[321082420,1711887902543,-185.879813,0.0004037,2]
[321082421,1711887902569,-185.879813,0.0004037,2]
[321082422,1711887902594,-185.879813,0.0004037,2]
[321082423,1711887902619,-185.879813,0.0004037,2]
[321082424,1711887902643,-185.879807,0.0004037,2]
[321082425,1711887902669,-151.0,0.0004037,2]
[321082426,1711887902693,-151.0,0.0004037,2]
[321082427,1711887902721,-151.0,0.0004037,2]
[321082428,1711887902746,-151.0,0.0004037,2]
[321082429,1711887902771,-151.0,0.0004037,2]
[321082430,1711887902796,-151.0,0.0004037,2]
[321082431,1711887902822,-274.060291,0.0004037,2]
[321082432,1711887902848,-500.0,0.0004037,4]
[321082433,1711887902874,-150.29941182,0.00040543,2]
[321082434,1711887902898,-500.0,0.00040642,4]
[321082435,1711887902924,-500.0,0.00040642,4]
[321082436,1711887902949,-500.0,0.00040642,4]
[321082437,1711887902974,-500.0,0.00040642,4]
[321082438,1711887903000,-500.0,0.00040642,4]
[321082439,1711887903026,-500.0,0.00040642,4]
[321082440,1711887903052,-500.0,0.00040642,4]
[321082441,1711887903078,-630.92,0.00040642,4]
[321082442,1711887903105,-500.0,0.00040642,4]
[321082443,1711887903132,-500.0,0.00040643,4]
[321082444,1711887903157,-500.0,0.00040643,4]
[321082445,1711887903184,-463.81,0.00040643,4]
[321082446,1711887903210,-472.69861768,0.00040643,4]
[321082447,1711887903235,-1249.86,0.00040643,4]
[321082448,1711887903261,-500.0,0.00040643,4]
[321082449,1711887903285,-500.0,0.00040643,4]
[321082450,1711887903312,-219.81245713,0.00040643,4]
[321082451,1711887903338,-1763.14,0.00040643,4]
[321082452,1711887903364,-500.0,0.00040643,4]
[321082453,1711887903390,-2420.6,0.00040643,4]
[321082454,1711887903415,-500.0,0.00040643,4]
[321082455,1711887903441,-701.82,0.00040643,4]
[321082456,1711887903469,-500.0,0.00040643,4]
[321082457,1711887903496,-500.0,0.00040643,4]
[321082458,1711887903523,-500.0,0.00040644,2]
[321082459,1711887903548,-314.51267217,0.00040644,4]
[321082460,1711887903575,-500.36049111,0.00040644,4]
[321082461,1711887903600,-287.02,0.00040644,4]
[321082462,1711887903625,-500.0,0.00040644,4]
[321082463,1711887903651,-390.58773375,0.00040916,4]
[321082464,1711887903677,-500.0,0.00040916,4]
[321082465,1711887903703,-175.58906742,0.00040916,4]
[321082466,1711887903731,-500.0,0.00040916,4]
[321082467,1711887903760,-500.0,0.00040916,4]
[321082468,1711887903785,-594.30975412,0.00040916,4]
[321082469,1711887903811,-630.92,0.00040916,4]
[321082470,1711887903837,-500.0,0.00040916,4]
[321082471,1711887903862,-500.0,0.00040917,4]
[321082472,1711887903982,-500.0,0.00040917,4]
[321082473,1711887904009,-1249.86,0.00040917,4]
[321082474,1711887904035,-500.0,0.00040917,4]
[321082475,1711887904061,-1763.14,0.00040917,4]
[321082476,1711887904088,-500.0,0.00040917,4]
[321082477,1711887904115,-2420.6,0.00040917,4]
[321082478,1711887904143,-500.0,0.00040917,4]
[321082479,1711887904171,-701.82,0.00040917,4]
[321082480,1711887904200,-500.0,0.00040917,4]
[321082481,1711887904227,-500.0,0.00040918,2]
[321082482,1711887904257,-500.0,0.00040918,4]
[321082483,1711887904285,-166.666666,0.00041096,2]
[321082484,1711887904314,-400.85090828,0.0004119,4]
[321082485,1711887904340,-500.0,0.0004119,4]
[321082486,1711887904366,-500.0,0.0004119,4]
[321082487,1711887904391,-630.92,0.0004119,4]
[321082488,1711887904417,-500.0,0.0004119,4]
[321082489,1711887904442,-500.0,0.00041191,4]
[321082490,1711887904468,-500.0,0.00041191,4]
[321082491,1711887904493,-1249.86,0.00041191,4]
[321082492,1711887904521,-500.0,0.00041191,4]
[321082493,1711887904547,-1763.14,0.00041191,4]
[321082494,1711887904573,-500.0,0.00041191,4]
[321082495,1711887904598,-2420.6,0.00041191,4]
[321082496,1711887904623,-500.0,0.00041191,4]
[321082497,1711887904648,-701.82,0.00041191,4]
[321082498,1711887904673,-500.0,0.00041191,4]
[321082499,1711887904698,-500.0,0.00041192,2]
[321082500,1711887904726,-500.0,0.00041464,4]
[321082501,1711887904753,-521.71222913,0.00041464,4]
[321082502,1711887904778,-630.92,0.00041464,4]
[321082503,1711887904803,-500.0,0.00041464,4]
[321082504,1711887904830,-277.02,0.00041465,4]
[321082505,1711887904855,-500.0,0.00041465,4]
[321082506,1711887904880,-1249.86,0.00041465,4]
[321082507,1711887904907,-500.0,0.00041465,4]
[321082508,1711887904934,-1763.14,0.00041465,4]
[321082509,1711887904960,-500.0,0.00041465,4]
[321082510,1711887904985,-2420.6,0.00041465,4]
[321082511,1711887905011,-500.0,0.00041465,4]